bitfinex-derivatives/quotes_BTCF0:USTF0_20250722
["timestamp","ask_amount","ask_price","bid_price","bid_amount"]
[1753190480502,2.12125878,119330.0,119320.0,0.5283251]
[1753190480914,2.12125878,119330.0,119320.0,0.5494651]
[1753190481612,2.12225878,119330.0,119320.0,0.5494651]
[1753190481810,2.12225878,119330.0,119320.0,0.5797551]
[1753190482011,2.12225878,119330.0,119320.0,0.5949851]
[1753190482510,2.12225878,119330.0,119320.0,0.2341851]
[1753190483107,2.03370959,119330.0,119320.0,0.2341851]
[1753190483517,2.03470959,119330.0,119320.0,0.2341851]
[1753190483917,2.03470959,119330.0,119320.0,0.5949851]
[1753190484609,2.03470959,119330.0,119320.0,0.2341851]
[1753190486011,2.03470959,119330.0,119320.0,0.5949851]
[1753190486718,2.03470959,119330.0,119320.0,1.1761051]
[1753190486923,2.03470959,119330.0,119320.0,0.5949851]
[1753190487119,1.76914096,119330.0,119320.0,0.86055373]
[1753190487323,2.03470959,119330.0,119320.0,1.44159373]
[1753190487618,2.03470959,119330.0,119320.0,1.48674131]
[1753190487817,2.03470959,119330.0,119320.0,1.22117268]
[1753190488015,2.03470959,119330.0,119320.0,1.1760251]
[1753190488213,2.03470959,119330.0,119320.0,1.22117268]
[1753190488418,2.03470959,119330.0,119320.0,1.48674131]
[1753190489011,1.751681,119330.0,119320.0,1.50927131]
[1753190489212,1.751681,119330.0,119320.0,1.46412373]
[1753190489414,2.01724963,119330.0,119320.0,1.46412373]
[1753190489908,2.01724963,119330.0,119320.0,1.44159373]
[1753190490815,2.01724963,119330.0,119320.0,1.1760251]
[1753190491621,2.01724963,119330.0,119320.0,1.44159373]
[1753190494325,2.03473054,119330.0,119320.0,1.44159373]
[1753190495120,2.03473054,119330.0,119320.0,1.46412373]
[1753190495424,2.03473054,119330.0,119320.0,1.50938626]
[1753190495923,1.76916191,119330.0,119320.0,1.50938626]
[1753190496223,2.03473054,119330.0,119320.0,1.50938626]
[1753190497818,1.60165091,119330.0,119320.0,1.77495489]
[1753190498023,2.03473054,119330.0,119320.0,1.77495489]
[1753190498212,2.03473054,119330.0,119320.0,1.50938626]
[1753190498725,2.03473054,119330.0,119320.0,1.77495489]
[1753190499024,2.03473054,119330.0,119320.0,1.50938626]
[1753190500322,2.03473054,119330.0,119320.0,0.92834626]
[1753190500527,2.03473054,119330.0,119320.0,1.48653626]
[1753190501525,2.03455976,119330.0,119320.0,1.45620626]
[1753190501726,2.03455976,119330.0,119320.0,1.1301451]
[1753190501929,2.03455976,119330.0,119320.0,1.17540763]
[1753190502127,2.03455976,119330.0,119320.0,0.59472763]
[1753190502329,2.03455976,119330.0,119320.0,1.15426763]
[1753190502529,2.30012839,119330.0,119320.0,0.79346763]
[1753190502729,2.03455976,119330.0,119320.0,0.79346763]
[1753190503131,2.03455976,119330.0,119320.0,0.7482051]
[1753190504031,2.03455976,119330.0,119320.0,0.79346763]
[1753190504231,2.03455976,119330.0,119320.0,0.79342763]
[1753190504431,2.03455976,119330.0,119320.0,0.7481651]
[1753190504632,2.03455976,119330.0,119320.0,0.79342763]
[1753190505235,2.03455976,119330.0,119320.0,0.21278763]
[1753190505432,2.61515976,119330.0,119320.0,0.21278763]
[1753190505732,2.97595976,119330.0,119320.0,0.1675251]
[1753190506626,2.61515976,119330.0,119320.0,0.1675251]
[1753190506927,2.61515976,119330.0,119320.0,0.21278763]
[1753190507730,2.61515976,119330.0,119320.0,0.1675251]
[1753190507931,2.61515976,119330.0,119320.0,0.21278763]
[1753190508332,0.2692351,119320.0,119310.0,0.69924003]
[1753190508531,0.55211386,119320.0,119310.0,1.14264456]
[1753190509038,0.81768249,119320.0,119310.0,0.79328163]
[1753190509539,0.81768249,119320.0,119310.0,0.7480191]
[1753190510438,0.81768249,119320.0,119310.0,0.1675391]
[1753190510635,0.81868249,119320.0,119310.0,0.7480191]
[1753190511133,0.2692491,119310.0,119300.0,1.26088073]
[1753190511327,0.55212786,119310.0,119300.0,1.26088073]
[1753190511732,0.28655923,119310.0,119300.0,1.52644936]
[1753190511940,0.55212786,119310.0,119300.0,1.52644936]
[1753190512140,1.13256786,119310.0,119300.0,0.61549073]
[1753190512341,1.75893649,119310.0,119300.0,0.04526253]
[1753190512538,0.1918731,119300.0,119290.0,0.41312266]
[1753190512740,0.80040036,119300.0,119290.0,0.99352266]
[1753190512946,0.81767647,119300.0,119290.0,1.00899266]
[1753190513141,0.62352478,119300.0,119290.0,1.00899266]
[1753190513944,0.62352478,119300.0,119290.0,0.94194853]
[1753190514452,0.62352478,119300.0,119290.0,0.94394853]
[1753190514745,0.62352478,119300.0,119290.0,0.36354853]
[1753190514945,0.62352478,119300.0,119290.0,0.33321853]
[1753190515352,0.62352478,119300.0,119290.0,0.287956]
[1753190515548,0.62352478,119300.0,119290.0,0.1695554]
[1753190515748,0.62352478,119300.0,119290.0,0.002]
[1753190515941,1.00158327,119300.0,119290.0,0.002]
[1753190517449,0.1838572,119290.0,119280.0,0.16771772]
[1753190517654,1.22119737,119290.0,119280.0,0.16771912]
[1753190518050,1.22119737,119290.0,119280.0,0.00013792]
[1753190518252,1.20393888,119290.0,119280.0,0.00013792]
[1753190518449,0.2039712,119280.0,119260.0,0.5336293]
[1753190518654,0.8249253,119270.0,119260.0,0.36012607]
[1753190518854,0.8151453,119270.0,119260.0,0.4053886]
[1753190519044,1.16940698,119270.0,119260.0,0.4053886]
[1753190519249,0.2347853,119270.0,119260.0,0.4053886]
[1753190519451,0.8151053,119270.0,119260.0,0.7661886]
[1753190519758,0.2132753,119270.0,119260.0,1.12045028]
[1753190519953,0.1976253,119270.0,119260.0,1.12045028]
[1753190520152,0.03003,119270.0,119260.0,1.12045028]
[1753190520357,0.01374,119270.0,119260.0,1.12045028]
[1753190520554,0.01374,119270.0,119260.0,1.44518775]
[1753190520861,0.00929,119270.0,119260.0,1.44518775]
[1753190521052,0.00929,119270.0,119260.0,1.07518775]
[1753190521248,0.00929,119270.0,119260.0,1.07818775]
[1753190521848,0.1813353,119270.0,119260.0,1.07618775]
[1753190522054,0.1813353,119270.0,119260.0,1.07518775]
[1753190522661,0.1813353,119270.0,119260.0,0.72092607]
[1753190522855,0.2132753,119270.0,119260.0,0.72092607]
[1753190523160,0.59882698,119270.0,119260.0,0.94048607]
[1753190523660,0.59882698,119270.0,119260.0,1.30128607]
[1753190523861,0.59882698,119270.0,119260.0,0.89858447]
[1753190524059,0.59882698,119270.0,119260.0,0.89854447]
[1753190524861,0.59882698,119270.0,119260.0,1.25934447]
[1753190525059,0.59882698,119270.0,119260.0,0.89854447]
[1753190525960,0.95962698,119270.0,119260.0,0.08956387]
[1753190526156,0.9674846,119270.0,119260.0,0.25717317]
[1753190526351,0.9674846,119270.0,119260.0,0.27632317]
[1753190526958,0.9674846,119270.0,119260.0,0.0552]
[1753190527265,0.9845203,119270.0,119260.0,0.0552]
[1753190527466,0.9845203,119270.0,119260.0,0.2228093]
[1753190527656,0.9845203,119270.0,119260.0,0.2574293]
[1753190527854,0.6237203,119270.0,119260.0,0.2574293]
[1753190528054,0.6139403,119270.0,119260.0,0.2574293]
[1753190528458,1.1941803,119270.0,119260.0,0.6182293]
[1753190528860,1.1941803,119270.0,119260.0,0.2574293]
[1753190529366,1.5660903,119270.0,119260.0,0.2574293]
[1753190530368,1.5660903,119270.0,119260.0,0.08982]
[1753190530567,1.5660903,119270.0,119260.0,0.2574293]
[1753190531168,1.58337936,119270.0,119260.0,0.2574293]
[1753190532171,1.58337936,119270.0,119260.0,0.08982]
[1753190532469,1.5660903,119270.0,119260.0,0.2574293]
[1753190533366,1.2052903,119270.0,119260.0,0.2574293]
[1753190534469,1.5660903,119270.0,119260.0,0.2574293]
[1753190535870,1.2052903,119270.0,119260.0,0.2574293]
[1753190536273,1.5660903,119270.0,119260.0,0.08982]
[1753190536472,1.5660903,119270.0,119260.0,0.03033]
[1753190537065,1.58338207,119270.0,119260.0,0.03033]
[1753190537463,0.2059893,119260.0,119250.0,0.2196614]
[1753190537667,0.96307098,119260.0,119250.0,0.05204]
[1753190538163,0.98036559,119260.0,119250.0,0.02923]
[1753190538369,0.2386234,119250.0,119240.0,0.2196724]
[1753190538568,1.54324508,119250.0,119240.0,0.2196724]
[1753190538970,1.54324508,119250.0,119240.0,0.05204]
[1753190539164,1.56064476,119250.0,119230.0,0.46322243]
[1753190539370,1.31736076,119240.0,119230.0,0.02923]
[1753190539569,1.31736076,119240.0,119230.0,0.1968815]
[1753190539769,1.33465945,119240.0,119230.0,0.1968815]
[1753190540772,1.33465945,119240.0,119230.0,0.02923]
[1753190540974,1.33465945,119240.0,119230.0,0.05204]
[1753190541178,1.33465945,119240.0,119230.0,0.02923]
[1753190541379,1.33452902,119240.0,119230.0,0.1968815]
[1753190541675,1.33452902,119240.0,119230.0,0.03023]
[1753190541881,0.98026734,119240.0,119230.0,0.1998815]
[1753190542179,0.98026734,119240.0,119230.0,0.2226915]
[1753190542480,0.61946734,119240.0,119230.0,0.2567715]
[1753190542779,0.23271609,119240.0,119230.0,0.6175715]
[1753190542976,0.2154174,119240.0,119230.0,0.6175715]
[1753190543170,0.04731244,119240.0,119230.0,0.6175715]
[1753190543370,0.00492,119250.0,119240.0,0.2037174]
[1753190543570,0.1817434,119250.0,119240.0,1.03762799]
[1753190543768,0.19904922,119250.0,119240.0,0.68336631]
[1753190543972,0.21493922,119250.0,119240.0,0.68336631]
[1753190544276,0.04731582,119250.0,119240.0,0.68336631]
[1753190544577,0.03142582,119250.0,119240.0,1.61774799]
[1753190544780,0.03442582,119250.0,119240.0,1.57348631]
[1753190545073,0.03442582,119250.0,119240.0,1.03762799]
[1753190545280,0.4223475,119250.0,119240.0,0.6165574]
[1753190545471,0.05331582,119250.0,119240.0,0.6165574]
[1753190545670,0.03742582,119250.0,119240.0,0.6165574]
[1753190546079,0.20504922,119250.0,119240.0,0.6165574]
[1753190546779,0.22093922,119250.0,119240.0,0.2557574]
[1753190546975,0.23870922,119250.0,119240.0,0.2557574]
[1753190547180,0.23870922,119250.0,119240.0,0.6165574]
[1753190547885,0.2214034,119250.0,119240.0,0.6165574]
[1753190548074,0.23872877,119250.0,119240.0,0.2557574]
[1753190548279,0.23872877,119250.0,119240.0,0.68450171]
[1753190549086,0.23572877,119250.0,119240.0,0.68450171]
[1753190549286,0.23772877,119250.0,119240.0,0.6165574]
[1753190550088,0.61350045,119250.0,119240.0,0.6165574]
[1753190550588,0.59199045,119250.0,119240.0,0.6165574]
[1753190550788,0.58899045,119250.0,119240.0,0.6165574]
[1753190551091,0.61250045,119250.0,119240.0,0.2557574]
[1753190551482,0.23672877,119250.0,119240.0,0.6165574]
[1753190551884,0.59099045,119250.0,119240.0,0.6165574]
[1753190552388,0.23672877,119250.0,119240.0,0.6165574]
[1753190553090,0.59099045,119250.0,119240.0,0.6165574]
[1753190554489,0.61250045,119250.0,119240.0,0.6165574]
[1753190554681,0.62361045,119250.0,119240.0,0.08812]
[1753190554880,0.62361045,119250.0,119240.0,0.2557574]
[1753190555590,0.61250045,119250.0,119240.0,0.2557574]
[1753190559388,0.81660877,119250.0,119240.0,0.97081908]
[1753190559584,0.20306877,119250.0,119240.0,0.97081908]
[1753190559789,0.20306877,119250.0,119240.0,1.33081908]
[1753190560088,0.20306877,119250.0,119240.0,0.97081908]
[1753190563384,0.1857434,119250.0,119240.0,1.01608161]
[1753190563888,0.20299334,119250.0,119240.0,1.01608161]
[1753190564088,0.1857434,119250.0,119240.0,1.01608161]
[1753190566287,0.1857434,119250.0,119240.0,0.66181993]
[1753190566485,0.23519443,119250.0,119240.0,0.8355174]
[1753190566679,0.62098611,119250.0,119240.0,0.8355174]
[1753190567088,0.61096611,119250.0,119240.0,0.8355174]
[1753190567289,0.23519443,119250.0,119240.0,0.8355174]
[1753190567488,0.23519443,119250.0,119240.0,1.1963174]
[1753190567688,0.2179434,119250.0,119240.0,1.24157993]
[1753190568783,0.2179434,119250.0,119240.0,0.88077993]
[1753190569192,0.2179434,119250.0,119240.0,0.8355174]
[1753190569383,0.2394534,119250.0,119240.0,0.8355174]
[1753190569589,0.2394534,119250.0,119240.0,1.1963174]
[1753190570292,0.2394534,119250.0,119240.0,1.1962774]
[1753190570487,0.59371508,119250.0,119240.0,1.1962774]
[1753190571185,0.59371508,119250.0,119240.0,1.1962374]
[1753190572393,0.59371508,119250.0,119240.0,0.6165574]
[1753190572798,0.60373508,119250.0,119240.0,0.2557574]
[1753190573092,0.60373508,119250.0,119240.0,0.6165574]
[1753190573291,0.59371508,119250.0,119240.0,0.6165574]
[1753190574197,0.95451508,119250.0,119240.0,0.13338226]
[1753190574391,0.60373508,119250.0,119240.0,0.30101966]
[1753190574693,1.2006429,119250.0,119240.0,0.13338226]
[1753190575086,1.21797072,119250.0,119240.0,0.13338226]
[1753190575289,1.57877072,119250.0,119240.0,0.30101966]
[1753190575991,1.57877072,119250.0,119240.0,0.13338226]
[1753190576591,1.57877072,119250.0,119240.0,0.09730226]
[1753190576790,1.57877072,119250.0,119240.0,0.05204]
[1753190577093,1.57877072,119250.0,119240.0,0.02923]
[1753190577289,1.57877072,119250.0,119230.0,0.09796226]
[1753190577290,0.2429974,119240.0,119230.0,0.09796226]
[1753190577489,0.9753269,119240.0,119230.0,0.09796226]
[1753190577692,0.9753269,119240.0,119230.0,0.0527]
[1753190578492,0.9763269,119240.0,119230.0,0.0527]
[1753190578698,0.97631353,119240.0,119230.0,0.0527]
[1753190579102,0.97631353,119240.0,119230.0,0.0297]
[1753190579497,0.2340515,119230.0,119220.0,0.2811834]
[1753190579700,1.19408763,119230.0,119220.0,0.3041834]
[1753190579900,1.19408763,119230.0,119220.0,0.2622672]
[1753190580198,1.57171987,119230.0,119220.0,0.0527]
[1753190580399,1.57171987,119230.0,119220.0,0.0297]
[1753190580808,0.2430255,119220.0,119210.0,0.2563696]
[1753190581005,0.97534163,119220.0,119210.0,0.08869]
[1753190581307,0.62107995,119220.0,119210.0,0.2563696]
[1753190581608,0.61454163,119220.0,119210.0,0.2563696]
[1753190582199,0.60517163,119220.0,119210.0,0.6171696]
[1753190582402,0.19823995,119220.0,119210.0,0.97143128]
[1753190582602,0.19388005,119220.0,119210.0,0.97143128]
[1753190582805,0.19464374,119230.0,119220.0,0.2036556]
[1753190583106,0.19344374,119230.0,119220.0,0.97141728]
[1753190583307,0.19780374,119230.0,119220.0,0.97141728]
[1753190583509,0.19780374,119230.0,119220.0,1.55101728]
[1753190583900,0.19880374,119230.0,119220.0,1.55101728]
[1753190585312,0.19880374,119230.0,119220.0,0.6171556]
[1753190585506,0.19880374,119230.0,119220.0,1.1967156]
[1753190585909,0.23549374,119230.0,119220.0,1.1967156]
[1753190586307,0.23549374,119230.0,119220.0,1.55097728]
[1753190586904,0.58975542,119230.0,119220.0,1.1967156]
[1753190587104,0.23549374,119230.0,119220.0,1.1967156]
[1753190588202,0.23549374,119230.0,119220.0,1.1966756]
[1753190588409,0.99856542,119230.0,119220.0,0.2563555]
[1753190588709,0.99856542,119230.0,119220.0,0.08869]
[1753190589009,0.2326456,119220.0,119210.0,0.2616318]
[1753190589313,1.55778728,119220.0,119210.0,0.05204]
[1753190589908,1.55778728,119220.0,119210.0,0.2197196]
[1753190590417,1.19698728,119220.0,119210.0,0.2207196]
[1753190591015,1.55778728,119220.0,119210.0,0.05304]
[1753190591215,1.55778728,119220.0,119210.0,0.001]
[1753190592011,0.1676796,119210.0,119200.0,0.05204]
[1753190592217,0.98593452,119210.0,119200.0,0.05204]
[1753190592411,0.99498452,119210.0,119200.0,0.2361437]
[1753190592613,0.99498452,119210.0,119200.0,0.2557737]
[1753190592812,0.63418452,119210.0,119200.0,0.2557737]
[1753190593511,0.63418452,119210.0,119200.0,0.2567737]
[1753190595316,1.01212902,119210.0,119200.0,0.05304]
[1753190595508,1.01212902,119210.0,119200.0,0.001]
[1753190595509,1.02025612,119210.0,119200.0,0.001]
[1753190597016,1.59969612,119210.0,119200.0,0.05504]
[1753190597218,1.23889612,119210.0,119200.0,0.2587737]
[1753190597712,1.24389612,119210.0,119200.0,0.08908]
[1753190597912,1.24389612,119210.0,119200.0,0.2567737]
[1753190599018,1.24389612,119210.0,119200.0,0.2557737]
[1753190599518,1.24389612,119210.0,119200.0,0.08808]
[1753190599919,1.24689612,119210.0,119200.0,0.08808]
[1753190600121,0.89263444,119210.0,119200.0,0.08808]
[1753190600421,1.24689612,119210.0,119200.0,0.08808]
[1753190600722,1.60769612,119210.0,119200.0,0.08808]
[1753190601422,1.60769612,119210.0,119200.0,0.2557737]
[1753190601723,1.60769612,119210.0,119200.0,0.08808]
[1753190602119,0.1676937,119200.0,119190.0,0.167707]
[1753190602317,0.2323682,119200.0,119190.0,0.616587]
[1753190602523,0.2152237,119200.0,119190.0,0.616587]
[1753190602720,0.1809837,119200.0,119190.0,0.97084868]
[1753190602923,0.01329,119200.0,119190.0,0.97347105]
[1753190603121,0.0082,119210.0,119200.0,0.2557737]
[1753190603328,0.008,119210.0,119200.0,1.1960137]
[1753190603526,0.003,119210.0,119200.0,1.55027538]
[1753190603826,0.2649967,119220.0,119210.0,0.2037196]
[1753190604021,0.1809616,119220.0,119210.0,0.97082128]
[1753190604929,0.2152016,119220.0,119210.0,0.6165596]
[1753190605725,0.00905,119220.0,119210.0,0.97344326]
[1753190605922,0.28072547,119230.0,119220.0,0.1872955]
[1753190606123,0.30673284,119230.0,119220.0,0.97080718]
[1753190606418,0.26481654,119230.0,119220.0,1.55020718]
[1753190607023,0.21494171,119230.0,119220.0,1.55020718]
[1753190607226,0.21494171,119230.0,119220.0,1.61146677]
[1753190607427,0.21494171,119230.0,119220.0,1.03206677]
[1753190607626,0.21494171,119230.0,119220.0,1.1959455]
[1753190607828,0.21494171,119230.0,119220.0,1.61146677]
[1753190608231,0.19778434,119230.0,119220.0,1.61146677]
[1753190608529,0.19778434,119230.0,119220.0,1.61408856]
[1753190609033,0.21994622,119230.0,119220.0,1.61408856]
[1753190609224,0.20278434,119230.0,119220.0,1.61408856]
[1753190610328,0.21078434,119230.0,119220.0,1.61408856]
[1753190611330,0.21078434,119230.0,119220.0,1.19856729]
[1753190611631,0.21078434,119230.0,119220.0,1.61408856]
[1753190611930,0.21078434,119230.0,119220.0,1.61146677]
[1753190612931,0.20878434,119230.0,119220.0,1.61146677]
[1753190613230,0.20778434,119230.0,119220.0,1.61134677]
[1753190614435,0.20778434,119230.0,119220.0,1.1958255]
[1753190614632,0.20778434,119230.0,119220.0,1.61134677]
[1753190615230,0.20678434,119230.0,119220.0,1.1957855]
[1753190615432,0.20578434,119230.0,119220.0,1.1957855]
[1753190615631,0.22091434,119230.0,119220.0,1.1957855]
[1753190616741,0.008,119230.0,119220.0,1.94130677]
[1753190616939,0.008,119230.0,119220.0,1.61130677]
[1753190617933,0.0002,119240.0,119230.0,0.1676515]
[1753190618135,0.24431904,119250.0,119240.0,0.2557174]
[1753190618434,0.25736682,119250.0,119240.0,1.61123867]
[1753190618744,0.21546052,119250.0,119240.0,1.61123867]
[1753190619642,0.22346052,119250.0,119240.0,1.61123867]
[1753190619835,0.22846052,119250.0,119240.0,1.61123867]
[1753190620035,0.60846052,119250.0,119240.0,1.61123867]
[1753190620344,0.59124792,119250.0,119240.0,1.61123867]
[1753190620935,0.60845443,119250.0,119240.0,1.1957174]
[1753190621641,0.61664908,119250.0,119240.0,1.1957174]
[1753190622240,0.59124792,119250.0,119240.0,1.21435487]
[1753190622538,0.59124792,119250.0,119240.0,1.62987614]
[1753190623943,0.60758792,119250.0,119240.0,1.62987614]
[1753190624843,0.61572468,119250.0,119240.0,1.62987614]
[1753190625542,0.60758792,119250.0,119240.0,1.62987614]
[1753190625939,0.59124792,119250.0,119240.0,1.62987614]
[1753190627540,0.60758792,119250.0,119240.0,1.62987614]
[1753190627742,0.62618792,119250.0,119240.0,1.62987614]
[1753190628253,0.63427826,119250.0,119240.0,1.62987614]
[1753190628842,0.62618792,119250.0,119240.0,1.62987614]
[1753190629047,0.59124792,119250.0,119240.0,1.62987614]
[1753190629248,0.59124792,119250.0,119240.0,1.56879651]
[1753190631550,0.59949235,119250.0,119240.0,1.56879651]
[1753190631748,0.61671497,119250.0,119240.0,1.56879651]
[1753190633652,0.61671497,119250.0,119240.0,1.21435487]
[1753190633847,0.61671497,119250.0,119240.0,1.56879651]
[1753190634043,0.63305497,119250.0,119240.0,1.56879651]
[1753190636449,0.62805497,119250.0,119240.0,1.56879651]
[1753190636951,0.62505497,119250.0,119240.0,1.56879651]
[1753190637348,0.40046384,119250.0,119240.0,1.56879651]
[1753190637549,0.22046384,119250.0,119240.0,1.56879651]
[1753190638550,0.22046384,119250.0,119240.0,1.21435487]
[1753190638850,0.22046384,119250.0,119240.0,1.56879651]
[1753190638851,0.05284044,119250.0,119240.0,1.56879651]
[1753190639046,0.03561782,119250.0,119240.0,1.56879651]
[1753190639750,0.03561782,119250.0,119240.0,1.61405877]
[1753190641142,0.03137782,119250.0,119240.0,1.61405877]
[1753190641346,0.01946057,119250.0,119240.0,2.34850041]
[1753190641746,0.0002,119260.0,119250.0,0.2574334]
[1753190642052,0.2393716,119270.0,119260.0,0.2574193]
[1753190642244,0.40537863,119270.0,119260.0,1.19062094]
[1753190642445,0.31397863,119270.0,119260.0,1.19062094]
[1753190642640,0.44397863,119270.0,119260.0,1.19062094]
[1753190642853,0.65397863,119270.0,119260.0,1.19062094]
[1753190643747,0.65897863,119270.0,119260.0,1.19062094]
[1753190644048,0.65897863,119270.0,119260.0,0.8361793]
[1753190644656,0.32719414,119270.0,119260.0,0.2574193]
[1753190644847,0.32719414,119270.0,119260.0,0.08981]
[1753190644848,2.02597578,119270.0,119260.0,0.08981]
[1753190645155,2.09282459,119270.0,119260.0,0.02987]
[1753190645347,0.2627593,119260.0,119250.0,0.2211328]
[1753190645647,1.01431797,119260.0,119250.0,0.2211328]
[1753190645960,0.99720094,119260.0,119250.0,0.2574328]
[1753190646149,0.6427593,119260.0,119250.0,0.2574328]
[1753190646350,0.65988377,119260.0,119250.0,0.2574328]
[1753190646758,0.66288377,119260.0,119250.0,0.2574328]
[1753190647254,1.18156377,119260.0,119250.0,0.2574328]
[1753190647455,1.1674393,119260.0,119250.0,0.6571367]
[1753190647755,0.09350695,119260.0,119250.0,0.30269506]
[1753190647945,0.26111625,119260.0,119250.0,0.61187444]
[1753190648351,0.57111625,119260.0,119250.0,0.66349506]
[1753190648657,0.57111625,119260.0,119250.0,0.2574328]
[1753190649048,0.59604625,119260.0,119250.0,0.2574328]
[1753190649255,0.5788693,119260.0,119250.0,0.30269506]
[1753190649654,0.59604648,119260.0,119250.0,0.30269506]
[1753190650152,0.6139393,119260.0,119250.0,0.6571367]
[1753190650358,0.2439393,119260.0,119250.0,0.6571367]
[1753190650552,0.07633,119260.0,119250.0,0.6571367]
[1753190650754,0.07633,119260.0,119250.0,1.0179367]
[1753190651059,0.03498,119260.0,119250.0,1.0179367]
[1753190651249,0.1862493,119260.0,119250.0,1.0179367]
[1753190651451,0.01864,119260.0,119250.0,1.0179367]
[1753190651851,0.1862493,119260.0,119250.0,1.0179367]
[1753190652051,0.01864,119260.0,119250.0,1.0179367]
[1753190652251,0.1862493,119260.0,119250.0,1.0179367]
[1753190652854,0.2269593,119260.0,119250.0,0.66349506]
[1753190653147,0.2717693,119260.0,119250.0,1.5965367]
[1753190653351,0.2468393,119260.0,119250.0,1.5965367]
[1753190654158,0.2468393,119260.0,119250.0,1.0179367]
[1753190654359,0.2468393,119260.0,119250.0,1.5965367]
[1753190655064,0.2269593,119260.0,119250.0,1.5965367]
[1753190655465,0.03437,119260.0,119250.0,1.5965367]
[1753190655767,0.006,119260.0,119250.0,1.5965367]
[1753190656261,0.006,119260.0,119250.0,1.55127444]
[1753190656468,0.006,119260.0,119250.0,1.91648147]
[1753190656659,0.003,119260.0,119250.0,1.87127444]
[1753190656855,0.003,119260.0,119250.0,1.55127444]
[1753190657363,0.1766557,119270.0,119260.0,0.2538193]
[1753190657564,0.1764557,119270.0,119260.0,1.01426346]
[1753190657864,0.00886,119270.0,119260.0,1.01426346]
[1753190659266,0.002,119270.0,119260.0,1.01426346]
[1753190659967,0.003,119270.0,119260.0,0.65982182]
[1753190660166,0.003,119270.0,119260.0,1.01426346]
[1753190661368,0.003,119270.0,119260.0,0.96906094]
[1753190661673,0.2386977,119280.0,119270.0,0.2538053]
[1753190661870,0.2384977,119280.0,119270.0,1.5927176]
[1753190662467,0.025906,119280.0,119270.0,1.5927176]
[1753190662682,0.017046,119280.0,119270.0,1.5927176]
[1753190662974,0.017046,119280.0,119270.0,1.66083834]
[1753190663466,0.017046,119280.0,119270.0,0.7279167]
[1753190663671,0.025906,119280.0,119270.0,1.66083834]
[1753190663871,0.1934872,119280.0,119270.0,1.66479834]
[1753190664770,0.2384972,119280.0,119270.0,0.7339167]
[1753190664970,0.5933072,119280.0,119270.0,0.90636604]
[1753190665162,0.2833072,119280.0,119270.0,0.90636604]
[1753190665371,0.2583772,119280.0,119270.0,1.62160768]
[1753190665677,0.2583772,119280.0,119270.0,1.66578207]
[1753190666667,0.2583772,119280.0,119270.0,1.31134043]
[1753190666869,0.2583772,119280.0,119270.0,1.66478207]
[1753190667272,0.2384972,119280.0,119270.0,1.66478207]
[1753190668568,0.2135172,119280.0,119270.0,1.66478207]
[1753190669169,0.1964712,119280.0,119270.0,1.68378396]
[1753190669372,0.02889,119280.0,119270.0,1.68378396]
[1753190669673,0.00886,119280.0,119270.0,2.04378396]
[1753190669878,0.00906,119290.0,119280.0,0.2537912]
[1753190670184,0.00886,119290.0,119280.0,1.01420453]
[1753190670481,0.1764272,119290.0,119280.0,1.01420453]
[1753190670878,0.1807272,119290.0,119280.0,1.01520453]
[1753190671976,0.01336,119300.0,119290.0,0.2537772]
[1753190672282,0.17032546,119300.0,119290.0,1.54737884]
[1753190672476,0.34591141,119300.0,119290.0,1.54737884]
[1753190673081,0.38662141,119300.0,119290.0,1.54737884]
[1753190673282,0.37045595,119300.0,119290.0,1.54737884]
[1753190673577,0.20290285,119300.0,119290.0,1.54737884]
[1753190673775,0.15416,119300.0,119290.0,1.54737884]
[1753190673976,0.14986,119300.0,119290.0,1.54737884]
[1753190674382,0.00986,119300.0,119290.0,1.54737884]
[1753190674783,0.00986,119300.0,119290.0,1.59255053]
[1753190675383,0.00886,119300.0,119290.0,1.59255053]
[1753190675581,0.1970308,119310.0,119300.0,0.1675531]
[1753190675879,0.2906991,119310.0,119300.0,0.96900474]
[1753190676577,0.12316,119310.0,119300.0,0.96900474]
[1753190677282,0.01316,119310.0,119300.0,0.96900474]
[1753190677484,0.00886,119310.0,119300.0,1.01417643]
[1753190677875,0.00986,119310.0,119300.0,1.01417643]
[1753190678382,0.001,119310.0,119300.0,1.01517643]
[1753190678577,0.2051251,119320.0,119310.0,0.2535791]
[1753190678782,0.3301151,119320.0,119310.0,1.54710074]
[1753190679884,0.3311151,119320.0,119310.0,1.54710074]
[1753190681080,0.12342,119320.0,119310.0,1.54710074]
[1753190681286,0.11937,119320.0,119310.0,1.54710074]
[1753190681786,0.00937,119320.0,119310.0,1.54710074]
[1753190682672,0.1768951,119320.0,119310.0,1.54710074]
[1753190682877,0.1758951,119320.0,119310.0,1.54810074]
[1753190683082,0.00837,119320.0,119310.0,1.54810074]
[1753190683987,0.175895,119320.0,119310.0,1.54810074]
[1753190684181,0.179945,119320.0,119310.0,1.54810074]
[1753190684383,0.219905,119320.0,119310.0,1.54810074]
[1753190684583,0.1953236,119330.0,119320.0,0.253565]
[1753190684882,0.2198936,119330.0,119320.0,0.96880664]
[1753190685681,0.2198936,119330.0,119320.0,0.614365]
[1753190685989,0.2208936,119330.0,119320.0,0.96880664]
[1753190686589,0.1961236,119330.0,119320.0,0.96880664]
[1753190686887,0.1809336,119330.0,119320.0,0.96880664]
[1753190687488,0.1809336,119330.0,119320.0,1.54692664]
[1753190688085,0.01342,119330.0,119320.0,1.54692664]
[1753190688286,0.180931,119330.0,119320.0,1.54692664]
[1753190689388,0.570891,119330.0,119320.0,1.54688664]
[1753190689588,0.220891,119330.0,119320.0,1.54688664]
[1753190691093,0.02861,119330.0,119320.0,1.54688664]
[1753190692284,0.196121,119330.0,119320.0,1.54688664]
[1753190692490,0.220891,119330.0,119320.0,1.54688664]
[1753190693090,0.05338,119330.0,119320.0,1.54688664]
[1753190693791,0.02861,119330.0,119320.0,1.54688664]
[1753190694196,0.00937,119330.0,119320.0,1.90132828]
[1753190694391,0.00937,119330.0,119320.0,1.54688664]
[1753190694998,0.001,119330.0,119320.0,2.21132828]
[1753190695500,0.001,119330.0,119320.0,2.25639572]
[1753190696093,0.001,119330.0,119320.0,2.26470235]
[1753190697197,0.0002,119340.0,119330.0,0.253551]
[1753190697495,0.00857,119350.0,119340.0,0.253537]
[1753190697700,0.01242,119350.0,119340.0,1.54673864]
[1753190698000,0.2198629,119350.0,119340.0,1.54673864]
[1753190698397,0.05238,119350.0,119340.0,1.54673864]
[1753190698601,0.2198629,119350.0,119340.0,1.54673864]
[1753190698906,0.2634129,119350.0,119340.0,1.02476]
[1753190699199,0.2634129,119350.0,119340.0,1.192257]
[1753190699896,0.2634129,119350.0,119340.0,1.54669864]
[1753190700297,0.97865454,119350.0,119340.0,0.08604]
[1753190700496,0.97865454,119350.0,119340.0,0.02807]
[1753190700799,0.99559208,119350.0,119340.0,0.02807]
[1753190701001,0.167497,119340.0,119330.0,0.04234]
[1753190701198,0.61786864,119340.0,119330.0,0.02807]
[1753190701400,0.61786864,119340.0,119330.0,0.195581]